fUST/lending_fUST_20250424
["ID","MTS","AMOUNT","RATE_DAILY","PERIOD"]
[358828141,1745481043224,-500.0,0.00019452,2]
[358828142,1745481043233,-502.98730615,0.00019452,2]
[358828143,1745481043243,-395.90436064,0.00019452,2]
[358828144,1745481043252,-503.38816111,0.00019452,2]
[358828145,1745481043261,-500.0,0.00019452,2]
[358828146,1745481043271,-500.0,0.00019452,2]
[358828147,1745481043281,-500.0,0.00019452,2]
[358828148,1745481043290,-1454.43,0.00019452,2]
[358828149,1745481043300,-507.29760826,0.00019452,2]
[358828150,1745481043310,-500.0,0.00019452,2]
[358828151,1745481043319,-506.17183024,0.00019452,2]
[358828152,1745481043328,-500.0,0.00019452,2]
[358828153,1745481043338,-500.0,0.00019452,2]
[358828154,1745481043347,-663.54,0.00019452,2]
[358828155,1745481043357,-506.97711278,0.00019452,2]
[358828156,1745481043367,-500.0,0.00019452,2]
[358828157,1745481043376,-500.0,0.00019452,2]
[358828158,1745481043385,-504.99519202,0.00019452,2]
[358828159,1745481043395,-500.0,0.00019452,2]
[358828160,1745481043404,-500.0,0.00019452,2]
[358828161,1745481043413,-500.0,0.00019452,2]
[358828162,1745481043423,-188.85,0.00019452,2]
[358828163,1745481043432,-500.0,0.00019452,2]
[358828164,1745481043441,-511.28065844,0.00019452,2]
[358828165,1745481043451,-500.0,0.00019452,2]
[358828166,1745481043460,-500.0,0.00019452,2]
[358828167,1745481043470,-500.0,0.00019452,2]
[358828168,1745481043480,-500.0,0.00019452,2]
[358828169,1745481043490,-500.0,0.00019452,2]
[358828170,1745481043500,-506.19261283,0.00019452,2]
[358828171,1745481043509,-500.0,0.00019452,2]
[358828172,1745481043519,-500.0,0.00019452,2]
[358828173,1745481043529,-557.03,0.00019452,2]
[358828174,1745481043538,-500.0,0.00019452,2]
[358828175,1745481043548,-500.0,0.00019452,2]
[358828176,1745481043562,-791.77,0.00019452,2]
[358828177,1745481043572,-500.0,0.00019452,2]
[358828178,1745481043582,-500.0,0.00019452,2]
[358828179,1745481043592,-574.93,0.00019452,2]
[358828180,1745481043602,-509.7,0.00019452,2]
[358828181,1745481043611,-709.24,0.00019452,2]
[358828182,1745481043621,-500.0,0.00019452,2]
[358828183,1745481043726,-500.13722653,0.00019452,2]
[358828184,1745481043736,-500.0,0.00019452,2]
[358828185,1745481043746,-671.03,0.00019452,2]
[358828186,1745481043756,-500.0,0.00019452,2]
[358828187,1745481043766,-500.0,0.00019452,2]
[358828188,1745481043775,-500.0,0.00019452,2]
[358828189,1745481043784,-500.0,0.00019452,2]
[358828190,1745481043794,-3037.02,0.00019452,2]
[358828191,1745481043804,-500.0,0.00019452,2]
[358828192,1745481043813,-500.0,0.00019452,2]
[358828193,1745481043822,-500.0,0.00019452,2]
[358828194,1745481043831,-242.248615,0.00019452,2]
[358828195,1745481043841,-500.0,0.00019452,2]
[358828196,1745481043850,-500.0,0.00019452,2]
[358828197,1745481043859,-802.14,0.00019452,2]
[358828198,1745481043869,-500.0,0.00019452,2]
[358828199,1745481043879,-516.25045071,0.00019452,2]
[358828200,1745481043888,-500.0,0.00019452,2]
[358828201,1745481043897,-151.0,0.00019452,2]
[358828202,1745481043907,-500.0,0.00019452,2]
[358828203,1745481043916,-500.0,0.00019452,2]
[358828204,1745481043926,-928.46,0.00019452,2]
[358828205,1745481043936,-500.0,0.00019452,2]
[358828206,1745481043945,-1181.28,0.00019452,2]
[358828207,1745481043956,-515.71953775,0.00019452,2]
[358828208,1745481043966,-776.44,0.00019452,2]
[358828209,1745481043975,-505.35838646,0.00019452,2]
[358828210,1745481043985,-500.0,0.00019452,2]
[358828211,1745481043996,-500.0,0.00019452,2]
[358828212,1745481044006,-500.0,0.00019452,2]
[358828213,1745481044016,-500.0,0.00019452,2]
[358828214,1745481044025,-500.0,0.00019452,2]
[358828215,1745481044035,-500.0,0.00019452,2]
[358828216,1745481044044,-500.0,0.00019452,2]
[358828217,1745481044054,-1000.0,0.00019452,2]
[358828218,1745481044064,-994.58,0.00019452,2]
[358828219,1745481044075,-1313.25,0.00019452,2]
[358828220,1745481044084,-831.73,0.00019452,2]
[358828221,1745481044094,-715.58,0.00019452,2]
[358828222,1745481044104,-1855.96,0.00019452,2]
[358828223,1745481044114,-502.6369472,0.00019452,2]
[358828224,1745481044123,-832.93,0.00019452,2]
[358828225,1745481044133,-500.0,0.00019452,2]
[358828226,1745481044143,-500.0,0.00019452,2]
[358828227,1745481044152,-151.0,0.00019452,2]
[358828228,1745481044162,-500.0,0.00019452,2]
[358828229,1745481044172,-500.0,0.00019452,2]
[358828230,1745481044182,-500.0,0.00019452,2]
[358828231,1745481044192,-500.0,0.00019452,2]
[358828232,1745481044202,-3366.77,0.00019452,2]
[358828233,1745481044211,-500.0,0.00019452,2]
[358828234,1745481044221,-500.0,0.00019452,2]
[358828235,1745481044231,-500.0,0.00019452,2]
[358828236,1745481044240,-500.0,0.00019452,2]
[358828237,1745481044251,-507.21730629,0.00019452,2]
[358828238,1745481044261,-500.0,0.00019452,2]
[358828239,1745481044271,-500.0,0.00019452,2]
[358828240,1745481044280,-500.0,0.00019452,2]
[358828241,1745481044289,-151.0,0.00019452,2]
[358828242,1745481044298,-661.39,0.00019452,2]
[358828243,1745481044308,-500.0,0.00019452,2]
[358828244,1745481044319,-500.0,0.00019452,2]
[358828245,1745481044329,-500.0,0.00019452,2]
[358828246,1745481044338,-500.0,0.00019452,2]
[358828247,1745481044347,-500.0,0.00019452,2]
[358828248,1745481044357,-500.0,0.00019452,2]
[358828249,1745481044366,-500.0,0.00019452,2]
[358828250,1745481044375,-505.60328456,0.00019452,2]
[358828251,1745481044384,-698.5,0.00019452,2]
[358828252,1745481044395,-623.77,0.00019452,2]
[358828253,1745481044404,-500.0,0.00019452,2]
[358828254,1745481044414,-755.83,0.00019452,2]
[358828255,1745481044424,-500.0,0.00019452,2]
[358828256,1745481044434,-1135.96,0.00019452,2]
[358828257,1745481044444,-500.0,0.00019452,2]
[358828258,1745481044454,-711.74,0.00019452,2]
[358828259,1745481044464,-500.0,0.00019452,2]
[358828260,1745481044473,-500.0,0.00019452,2]
[358828261,1745481044483,-510.76663886,0.00019452,2]
[358828262,1745481044493,-951.63,0.00019452,2]
[358828263,1745481044503,-771.61,0.00019452,2]
[358828264,1745481044512,-500.0,0.00019452,2]
[358828265,1745481044523,-723.91,0.00019452,2]
[358828266,1745481044533,-500.0,0.00019452,2]
[358828267,1745481044543,-500.0,0.00019452,2]
[358828268,1745481044555,-500.0,0.00019452,2]
[358828269,1745481044567,-500.0,0.00019452,2]
[358828270,1745481044578,-500.0,0.00019452,2]
[358828271,1745481044589,-500.0,0.00019452,2]
[358828272,1745481044599,-500.0,0.00019452,2]
[358828273,1745481044609,-1123.82,0.00019452,2]
[358828274,1745481044618,-500.0,0.00019452,2]
[358828275,1745481044628,-500.0,0.00019452,2]
[358828276,1745481044639,-872.99,0.00019452,2]
[358828277,1745481044648,-500.0,0.00019452,2]
[358828278,1745481044658,-500.0,0.00019452,2]
[358828279,1745481044667,-2711.59,0.00019452,2]
[358828280,1745481044677,-500.0,0.00019452,2]
[358828281,1745481044686,-500.0,0.00019452,2]
[358828282,1745481044696,-500.0,0.00019452,2]
[358828283,1745481044705,-500.0,0.00019452,2]
[358828284,1745481044715,-500.0,0.00019452,2]
[358828285,1745481044725,-500.0,0.00019452,2]
[358828286,1745481044736,-504.88759479,0.00019452,2]
[358828287,1745481044745,-500.0,0.00019452,2]
[358828288,1745481044755,-500.0,0.00019452,2]
[358828289,1745481044765,-717.2,0.00019452,2]
[358828290,1745481044774,-153.333084,0.00019452,2]
[358828291,1745481044784,-500.0,0.00019452,2]
[358828292,1745481044793,-500.0,0.00019452,2]
[358828293,1745481044804,-9000.0,0.00019452,2]
[358828294,1745481044815,-500.0,0.00019452,2]
[358828295,1745481044824,-9000.0,0.00019452,2]
[358828296,1745481044834,-500.0,0.00019452,2]
[358828297,1745481044843,-500.0,0.00019452,2]
[358828298,1745481044853,-500.0,0.00019452,2]
[358828299,1745481044862,-622.05,0.00019452,2]
[358828300,1745481044872,-365.03101003,0.00019452,2]
[358828301,1745481044882,-504.08222012,0.00019452,2]
[358828302,1745481044891,-500.0,0.00019452,2]
[358828303,1745481044900,-500.0,0.00019452,2]
[358828304,1745481044909,-500.0,0.00019452,2]
[358828305,1745481044919,-515.29966395,0.00019452,2]
[358828306,1745481044928,-500.0,0.00019452,2]
[358828307,1745481044937,-605.54,0.00019452,2]
[358828308,1745481044946,-151.0,0.00019452,2]
[358828309,1745481044956,-500.0,0.00019452,2]
[358828310,1745481044965,-500.0,0.00019452,2]
[358828311,1745481044975,-151.0,0.00019452,2]
[358828312,1745481044985,-500.0,0.00019452,2]
[358828313,1745481044994,-500.0,0.00019452,2]
[358828314,1745481045004,-555.07,0.00019452,2]
[358828315,1745481045013,-6703.88,0.00019452,2]
[358828316,1745481045022,-151.0,0.00019452,2]
[358828317,1745481045031,-220.099244,0.00019452,2]
[358828318,1745481045041,-500.0,0.00019452,2]
[358828319,1745481045051,-500.0,0.00019452,2]
[358828320,1745481045060,-500.0,0.00019452,2]
[358828321,1745481045070,-500.0,0.00019452,2]
[358828322,1745481045079,-500.0,0.00019452,2]
[358828323,1745481045088,-500.0,0.00019452,2]
[358828324,1745481045099,-947.34,0.00019452,2]
[358828325,1745481045108,-1380.11,0.00019452,2]
[358828326,1745481045118,-500.0,0.00019452,2]
[358828327,1745481045128,-500.0,0.00019452,2]
[358828328,1745481045138,-500.0,0.00019452,2]
[358828329,1745481045147,-500.0,0.00019452,2]
[358828330,1745481045156,-500.0,0.00019452,2]
[358828331,1745481045165,-500.0,0.00019452,2]
[358828332,1745481045174,-500.0,0.00019452,2]
[358828333,1745481045184,-67.02334333,0.00019452,2]
[358828334,1745481045510,-1313.08665667,0.00019452,2]
[358828335,1745481045520,-500.0,0.00019452,2]
[358828336,1745481045530,-500.0,0.00019452,2]
[358828337,1745481045540,-500.0,0.00019452,2]
[358828338,1745481045550,-500.0,0.00019452,2]
[358828339,1745481045565,-500.0,0.00019452,2]
[358828340,1745481045574,-500.0,0.00019452,2]
[358828341,1745481045584,-515.06,0.00019452,2]
[358828342,1745481045598,-500.0,0.00019452,2]
[358828343,1745481045608,-1063.87,0.00019452,2]
[358828344,1745481045617,-663.4,0.00019452,2]
[358828345,1745481045627,-500.0,0.00019452,2]
[358828346,1745481045637,-1143.38,0.00019452,2]
[358828347,1745481045647,-500.0,0.00019452,2]
[358828348,1745481045657,-407.06130888,0.00019452,2]
[358828349,1745481045667,-542.51,0.00019452,2]
[358828350,1745481045676,-500.0,0.00019452,2]
[358828351,1745481045686,-500.0,0.00019452,2]
[358828352,1745481045696,-500.0,0.00019452,2]
[358828353,1745481045706,-1687.77,0.00019452,2]
[358828354,1745481045716,-1218.09,0.00019452,2]
[358828355,1745481045726,-700.08,0.00019452,2]
[358828356,1745481045736,-500.0,0.00019452,2]
[358828357,1745481045746,-2623.87,0.00019452,2]
[358828358,1745481045755,-500.0,0.00019452,2]
[358828359,1745481045765,-1201.56,0.00019452,2]
[358828360,1745481045775,-500.0,0.00019452,2]
[358828361,1745481045785,-1166.22,0.00019452,2]
[358828362,1745481045795,-500.0,0.00019452,2]
[358828363,1745481045805,-500.0,0.00019452,2]
[358828364,1745481045815,-2070.72,0.00019452,2]
[358828365,1745481045824,-151.0,0.00019452,2]
[358828366,1745481045833,-1000.0,0.00019452,2]
[358828367,1745481045846,-151.0,0.00019452,2]
[358828368,1745481045855,-152.797179,0.00019452,2]
[358828369,1745481045877,-2198.7,0.00019452,2]
[358828370,1745481045893,-500.0,0.00019452,2]
[358828371,1745481045909,-500.0,0.00019452,2]
[358828372,1745481045927,-1640.96,0.00019452,2]
[358828373,1745481045944,-500.0,0.00019452,2]
[358828374,1745481045961,-527.31,0.00019452,2]
[358828375,1745481045976,-500.0,0.00019452,2]
[358828376,1745481045994,-500.0,0.00019452,2]
[358828377,1745481046008,-500.0,0.00019452,2]
[358828378,1745481046021,-3792.74,0.00019452,2]
[358828379,1745481046038,-307.18216885,0.00019452,2]
[358828380,1745481046055,-1185.55,0.00019452,2]
[358828383,1745481046073,-5426.96,0.00019452,2]
[358828385,1745481046086,-500.0,0.00019452,2]
[358828387,1745481046101,-669.99,0.00019452,2]
[358828389,1745481046119,-500.0,0.00019452,2]
[358828390,1745481046133,-854.4,0.00019452,2]
[358828391,1745481046149,-500.0,0.00019452,2]
[358828392,1745481046162,-795.55,0.00019452,2]
[358828393,1745481046175,-509.14514543,0.00019452,2]
[358828394,1745481046190,-1382.12,0.00019452,2]
[358828395,1745481046204,-500.0,0.00019452,2]
[358828396,1745481046218,-500.0,0.00019452,2]
[358828397,1745481046232,-500.0,0.00019452,2]
[358828398,1745481046245,-500.0,0.00019452,2]
[358828399,1745481046258,-171.427202,0.00019452,2]
[358828400,1745481046272,-171.427202,0.00019452,2]
[358828401,1745481046285,-500.0,0.00019452,2]
[358828402,1745481046299,-500.0,0.00019452,2]
[358828403,1745481046313,-500.0,0.00019452,2]
[358828404,1745481046327,-171.427202,0.00019452,2]
[358828405,1745481046342,-500.0,0.00019452,2]
[358828406,1745481046356,-56.23579019,0.00019452,2]
[358828408,1745481046767,-280.07917309,0.00017209,2]
[358828409,1745481046777,-274.68852683,0.00017209,2]
[358828410,1745481046794,-360.30917587,0.00017209,2]
[358828411,1745481046803,-269.89715884,0.00019215,2]
[358828412,1745481046813,-443.76420981,0.00019452,2]
[358828413,1745481046822,-500.0,0.00019452,2]
[358828414,1745481046831,-171.427202,0.00019452,2]
[358828415,1745481046841,-2066.74,0.00019452,2]
[358828416,1745481046851,-1266.11,0.00019452,2]
[358828417,1745481046860,-500.0,0.00019452,2]
[358828418,1745481046869,-1857.16495805,0.00019452,2]
[358828419,1745481046880,-1576.44568762,0.00019452,2]
[358828420,1745481047450,-269.89715884,0.00019284,2]
[358828421,1745481047460,-621.55935433,0.00019452,2]
[358828422,1745481047470,-500.0,0.00019452,2]
[358828423,1745481047479,-500.0,0.00019452,2]
[358828424,1745481047489,-170.0649726,0.00019452,2]
[358828425,1745481047718,-269.89715884,0.00019352,2]
[358828426,1745481047728,-291.17926316,0.00019452,2]
[358828427,1745481047740,-38.75576424,0.00019452,2]
[358828428,1745481047750,-500.0,0.00019452,2]
[358828429,1745481047759,-500.0,0.00019452,2]
[358828430,1745481047768,-2019.8,0.00019452,2]
[358828431,1745481047778,-500.0,0.00019452,2]
[358828432,1745481047787,-500.0,0.00019452,2]
[358828433,1745481047797,-2825.89,0.00019452,2]
[358828434,1745481047806,-529.81,0.00019452,2]
[358828435,1745481047815,-500.0,0.00019452,2]
[358828436,1745481047824,-500.0,0.00019452,2]
[358828437,1745481047834,-500.0,0.00019452,2]
[358828438,1745481047844,-500.0,0.00019452,2]
[358828439,1745481047854,-500.0,0.00019452,2]
[358828440,1745481047863,-500.0,0.00019452,2]
[358828441,1745481047872,-151.784006,0.00019452,2]
[358828442,1745481047882,-926.08,0.00019452,2]
[358828443,1745481047891,-500.0,0.00019452,2]
[358828444,1745481047900,-500.0,0.00019452,2]
[358828445,1745481047909,-500.0,0.00019452,2]
[358828446,1745481047919,-505.07555943,0.00019452,2]
[358828447,1745481047927,-699.24,0.00019452,2]
[358828448,1745481047936,-1016.69,0.00019452,2]
[358828449,1745481047946,-500.0,0.00019452,2]
[358828450,1745481047955,-531.54,0.00019452,2]
[358828451,1745481047964,-904.84,0.00019452,2]
[358828452,1745481047974,-5906.07,0.00019452,2]
[358828453,1745481047983,-500.0,0.00019452,2]
[358828454,1745481047993,-6429.02,0.00019452,2]
[358828455,1745481048002,-500.0,0.00019452,2]
[358828456,1745481048012,-500.0,0.00019452,2]
[358828457,1745481048021,-500.0,0.00019452,2]
[358828458,1745481048031,-5090.74,0.00019452,2]
[358828459,1745481048040,-504.27363926,0.00019452,2]
[358828460,1745481048052,-690.33,0.00019452,2]
[358828461,1745481048061,-500.0,0.00019452,2]
[358828462,1745481048071,-3185.9,0.00019452,2]
[358828463,1745481048080,-500.0,0.00019452,2]
[358828464,1745481048090,-1297.59,0.00019452,2]
[358828465,1745481048100,-609.02,0.00019452,2]
[358828466,1745481048110,-500.0,0.00019452,2]
[358828467,1745481048120,-500.0,0.00019452,2]
[358828468,1745481048129,-500.0,0.00019452,2]
[358828469,1745481048138,-1986.71,0.00019452,2]
[358828470,1745481048148,-1183.67,0.00019452,2]
[358828471,1745481048157,-500.0,0.00019452,2]
[358828472,1745481048167,-500.0,0.00019452,2]
[358828473,1745481048176,-151.579286,0.00019452,2]
[358828474,1745481048186,-500.0,0.00019452,2]
[358828475,1745481048196,-500.0,0.00019452,2]
[358828476,1745481048206,-500.0,0.00019452,2]
[358828477,1745481048215,-4620.41,0.00019452,2]
[358828478,1745481048225,-500.0,0.00019452,2]
[358828479,1745481048234,-788.23,0.00019452,2]
[358828480,1745481048244,-500.0,0.00019452,2]
[358828481,1745481048254,-500.0,0.00019452,2]
[358828482,1745481048263,-3702.49770442,0.00019452,2]
[358828483,1745481048275,-700.59853048,0.00019452,2]
[358828492,1745481354429,224.9360381,0.00016546,2]
[358828505,1745481762875,27.55626718,0.00016105,2]
[358828511,1745482038118,-175.66801782,0.00016105,2]
[358828512,1745482038141,-300.0,0.00016998,2]
[358828513,1745482038163,-500.0,0.00016999,2]
[358828514,1745482038184,-500.0,0.00016999,2]
[358828515,1745482038212,-500.0,0.00016999,2]
[358828516,1745482038233,-500.0,0.00016999,2]
[358828517,1745482038261,-500.0,0.00016999,2]
[358828518,1745482038282,-500.0,0.00016999,2]
[358828519,1745482038303,-643.98999616,0.00016999,2]
[358828520,1745482038325,-500.0,0.00016999,2]
[358828521,1745482038354,-500.0,0.00016999,2]
[358828522,1745482038376,-500.0,0.00016999,2]
[358828523,1745482038405,-500.0,0.00016999,2]
[358828524,1745482038432,-500.0,0.00016999,2]
[358828525,1745482038452,-187.0,0.00016999,2]
[358828526,1745482038481,-497.16763776,0.00016999,2]
[358828527,1745482038509,-500.0,0.00016999,2]
[358828528,1745482038536,-500.0,0.00016999,2]
[358828529,1745482038564,-500.0,0.00016999,2]
[358828530,1745482038592,-500.0,0.00016999,2]
[358828531,1745482038619,-500.0,0.00016999,2]
[358828532,1745482038647,-500.0,0.00016999,2]
[358828533,1745482038674,-500.0,0.00016999,2]
[358828534,1745482038701,-500.0,0.00016999,2]
[358828535,1745482038728,-500.0,0.00016999,2]
[358828536,1745482038757,-500.0,0.00016999,2]
[358828537,1745482038784,-500.0,0.00016999,2]
[358828538,1745482038811,-500.0,0.00016999,2]
[358828539,1745482038838,-500.0,0.00016999,2]
[358828540,1745482038866,-500.0,0.00016999,2]
[358828541,1745482038893,-500.0,0.00016999,2]
[358828542,1745482038915,-1304.74314782,0.00017,2]
[358828543,1745482038940,-300.0,0.00017002,2]
[358828544,1745482038962,-410.0,0.00017002,2]
[358828545,1745482038983,-437.21043573,0.00017003,2]
[358828546,1745482039003,-500.0,0.00017003,2]
[358828547,1745482039025,-423.78150322,0.00017003,2]
[358828548,1745482039045,-500.0,0.000171,2]
[358828549,1745482039065,-500.0,0.000171,2]
[358828550,1745482039087,-509.62149181,0.000171,2]
[358828551,1745482039107,-500.0,0.000171,2]
[358828552,1745482039128,-402.91626145,0.000171,2]
[358828553,1745482039148,-511.29337322,0.000171,2]
[358828554,1745482039170,-500.0,0.000171,2]
[358828555,1745482039191,-500.0,0.000171,2]
[358828556,1745482039211,-1005.19469772,0.00017104,2]
[358828557,1745482039232,-500.0,0.0001715,2]
[358828558,1745482039253,-500.0,0.000172,2]
[358828559,1745482039274,-1000.0,0.0001721,2]
[358828560,1745482039295,-167.8765096,0.00017521,2]
[358828561,1745482039317,-6936.8989949,0.00017721,2]
[358828562,1745482039342,-264.3595,0.00017721,2]
[358828563,1745482039364,-169.67,0.00018,2]
[358828564,1745482039386,-420.0,0.00018566,2]
[358828565,1745482039411,-420.0,0.0001857,2]
[358828566,1745482039432,-500.0,0.00018725,2]
[358828567,1745482039454,-308.81936428,0.00018828,2]
[358828568,1745482039476,-179.29506861,0.000189,2]
[358828569,1745482039497,-308.81936428,0.00019122,2]
[358828570,1745482039518,-500.0,0.00019122,2]
[358828571,1745482039539,-500.0,0.00019122,2]
[358828572,1745482039560,-172.32384942,0.00019122,2]
[358828573,1745482039583,-151.0,0.00019166,2]
[358828574,1745482039604,-500.0,0.00019173,2]
[358828575,1745482039632,-500.0,0.00019173,2]
[358828576,1745482039658,-500.0,0.00019173,2]
[358828577,1745482039680,-500.0,0.00019173,2]
[358828578,1745482039701,-500.0,0.00019173,2]
[358828579,1745482039724,-545.21699059,0.00019178,2]
[358828580,1745482039745,-500.0,0.00019178,2]
[358828581,1745482039768,-582.96485834,0.00019178,2]
[358828582,1745482039790,-500.0,0.00019178,2]
[358828583,1745482039812,-502.36080311,0.00019178,2]
[358828584,1745482039835,-520.1695866,0.00019178,2]
[358828585,1745482039856,-500.0,0.00019178,2]
[358828586,1745482039878,-503.36824419,0.00019178,2]
[358828587,1745482039899,-500.0,0.00019178,2]
[358828588,1745482039921,-501.07964861,0.00019178,2]
[358828589,1745482039946,-552.09,0.00019178,2]
[358828590,1745482039969,-500.0,0.00019178,2]
[358828591,1745482039990,-500.0,0.00019178,2]
[358828592,1745482040013,-582.01596403,0.00019178,2]
[358828593,1745482040035,-500.0,0.00019178,2]
[358828594,1745482040057,-529.33,0.00019178,2]
[358828595,1745482040079,-500.0,0.00019178,2]
[358828596,1745482040101,-500.0,0.00019178,2]
[358828597,1745482040122,-500.0,0.00019178,2]
[358828598,1745482040143,-500.0,0.00019178,2]
[358828599,1745482040164,-386.90797935,0.00019178,2]
[358828600,1745482040185,-528.23057911,0.00019178,2]
[358828601,1745482040206,-534.50746117,0.00019178,2]
[358828602,1745482040228,-500.0,0.00019178,2]
[358828603,1745482040249,-412.07051401,0.00019178,2]
[358828604,1745482040271,-500.0,0.00019178,2]
[358828605,1745482040292,-500.0,0.00019178,2]
[358828606,1745482040314,-500.41639559,0.00019178,2]
[358828607,1745482040337,-169.9769405,0.00019178,2]
[358828608,1745482040358,-837.01,0.00019178,2]
[358828609,1745482040379,-500.0,0.00019178,2]
[358828610,1745482040400,-500.0,0.00019178,2]
[358828611,1745482040421,-510.36758078,0.00019178,2]
[358828612,1745482040442,-500.0,0.00019178,2]
[358828613,1745482040463,-500.0,0.00019178,2]
[358828614,1745482040486,-500.0,0.00019178,2]
[358828615,1745482040507,-572.21,0.00019178,2]
[358828616,1745482040528,-500.0,0.00019178,2]
[358828617,1745482040550,-664.96,0.00019178,2]
[358828618,1745482040572,-500.0,0.00019178,2]
[358828619,1745482040599,-500.0,0.00019178,2]
[358828620,1745482040621,-215.15493924,0.00019178,2]
[358828621,1745482040644,-500.0,0.00019178,2]
[358828622,1745482040666,-500.0,0.00019178,2]
[358828623,1745482040688,-500.0,0.00019178,2]
[358828624,1745482040709,-500.0,0.00019178,2]
[358828625,1745482040732,-500.0,0.00019178,2]
[358828626,1745482040754,-500.0,0.00019178,2]
[358828627,1745482040776,-500.0,0.00019178,2]
[358828628,1745482040797,-501.5162689,0.00019178,2]
[358828629,1745482040818,-500.0,0.00019178,2]
[358828630,1745482040841,-500.0,0.00019178,2]
[358828631,1745482040862,-500.0,0.00019178,2]
[358828632,1745482040883,-500.0,0.00019178,2]
[358828633,1745482040905,-500.0,0.00019178,2]
[358828634,1745482041102,-504.60093107,0.00019178,2]
[358828635,1745482041123,-503.59858341,0.00019178,2]
[358828636,1745482041144,-500.0,0.00019178,2]
[358828637,1745482041165,-500.0,0.00019178,2]
[358828638,1745482041186,-500.0,0.00019178,2]
[358828639,1745482041206,-500.0,0.00019178,2]
[358828640,1745482041226,-500.0,0.00019178,2]
[358828641,1745482041247,-500.0,0.00019178,2]
[358828642,1745482041266,-500.0,0.00019178,2]
[358828643,1745482041286,-501.77172128,0.00019178,2]
[358828644,1745482041306,-500.0,0.00019178,2]
[358828645,1745482041330,-504.99519202,0.00019178,2]
[358828646,1745482041350,-500.0,0.00019178,2]
[358828647,1745482041370,-500.0,0.00019178,2]
[358828648,1745482041390,-500.0,0.00019178,2]
[358828649,1745482041411,-500.0,0.00019178,2]
[358828650,1745482041431,-505.99046163,0.00019178,2]
[358828651,1745482041450,-502.98730615,0.00019178,2]
[358828652,1745482041470,-500.0,0.00019178,2]
[358828653,1745482041490,-500.0,0.00019178,2]
[358828654,1745482041510,-500.0,0.00019178,2]
[358828655,1745482041531,-503.38816111,0.00019178,2]
[358828656,1745482041550,-500.0,0.00019178,2]
[358828657,1745482041572,-500.0,0.00019178,2]
[358828658,1745482041592,-500.0,0.00019178,2]
[358828659,1745482041614,-500.0,0.00019178,2]
[358828660,1745482041634,-500.0,0.00019178,2]
[358828661,1745482041653,-500.0,0.00019178,2]
[358828662,1745482041674,-500.0,0.00019178,2]
[358828663,1745482041695,-500.0,0.00019178,2]
[358828664,1745482041715,-500.0,0.00019178,2]
[358828665,1745482041735,-500.0,0.00019178,2]
[358828666,1745482041755,-511.28065844,0.00019178,2]
[358828667,1745482041774,-506.19261283,0.00019178,2]
[358828668,1745482041795,-500.0,0.00019178,2]
[358828669,1745482041815,-500.0,0.00019178,2]
[358828670,1745482041836,-500.0,0.00019178,2]
[358828671,1745482041856,-500.0,0.00019178,2]